fUST/lending_fUST_20251227
["ID","MTS","AMOUNT","RATE_DAILY","PERIOD"]
[399889459,1766815840689,-9156.633293,0.00020255,2]
[399889465,1766815845408,-59281.91441046,0.00020255,2]
[399889466,1766815845422,-1006.48258911,0.00020255,2]
[399889467,1766815845468,-11874.6777346,0.00020255,2]
[399889468,1766815845480,-5465.64002953,0.00020255,2]
[399889469,1766815845955,-28.67736688,0.00020255,2]
[399889470,1766815845968,-509.76218486,0.00020255,2]
[399889471,1766815845980,-19294.01464235,0.00020255,2]
[399889482,1766815846422,-467.10910666,0.00020255,2]
[399889497,1766815846542,-879.9514622,0.00020255,2]
[399889498,1766815846657,-880.1,0.00020255,2]
[399889499,1766815945229,234.36351564,7.961e-05,2]
[399889500,1766815953694,150.0,0.00012939,2]
[399889501,1766815954084,150.0,0.00014115,2]
[399889502,1766816003373,500.0,0.00013273,2]
[399889503,1766816020948,150.0,0.00012424,2]
[399889504,1766816021478,150.0,0.00013553,2]
[399889508,1766816580627,173.90956569,7.961e-05,2]
[399889509,1766816748138,-173.90956569,0.00016055,2]
[399889510,1766816748160,-654.0,0.00016118,2]
[399889511,1766816748183,-183.61288083,0.00016936,2]
[399889512,1766816748206,-216.66319938,0.00018936,2]
[399889513,1766816748227,-300.0,0.0001939,2]
[399889514,1766816748247,-714.03275625,0.00019391,2]
[399889524,1766816954095,-870.27521063,0.00018,5]
[399889525,1766816954116,-1941.7566137,0.00018,2]
[399889559,1766817032441,-6537.40318327,0.00018,2]
[399889561,1766817032451,-175.60735923,0.00018667,2]
[399889563,1766817032462,-319.42145416,0.00019334,2]
[399889565,1766817032472,-249.0,0.0001939,2]
[399889567,1766817032482,-867.91710232,0.00019391,2]
[399889569,1766817032494,-597.77674817,0.00019391,2]
[399889571,1766817032505,-303.41490542,0.00019391,2]
[399889613,1766817038560,-7516.85848784,0.00019391,2]
[399889615,1766817038570,-250.0,0.00019445,2]
[399889617,1766817038580,-368.75326281,0.00019823,2]
[399889619,1766817038590,-2318.8583572,0.0001989,2]
[399889621,1766817038599,-84330.83322667,0.00020155,2]
[399889684,1766817045027,-5333.39714427,0.00020155,2]
[399889695,1766817132549,286.08197252,7.961e-05,2]
[399889696,1766817169223,150.0,0.00012394,2]
[399889697,1766817169626,150.0,0.00013521,2]
[399889698,1766817178624,219.31002328,7.961e-05,2]
[399889699,1766817188091,500.0,0.00013699,2]
[399889700,1766817188153,1000.0,0.00014247,2]
[399889701,1766817211171,387.420221,0.00013699,2]
[399889702,1766817235942,150.0,0.00012392,2]
[399889703,1766817236331,150.0,0.00013518,2]
[399889704,1766817407757,500.0,0.00030134,120]
[399889705,1766817407865,500.0,0.00030134,120]
[399889706,1766817408109,500.0,0.00030134,120]
[399889707,1766817408352,541.84200894,0.00030134,120]
[399889726,1766817547259,500.0,0.00013699,2]
[399889727,1766817547303,1000.0,0.00014247,2]
[399889730,1766817636577,531.78,0.00030137,120]
[399889736,1766817910137,507.88586661,0.00013699,2]
[399889737,1766817933126,-183.64659469,0.00014758,2]
[399889738,1766817933144,-632.0,0.00014758,2]
[399889739,1766817933162,-286.08197252,0.00016222,2]
[399889740,1766817933179,-216.70298173,0.00016758,2]
[399889741,1766817933194,-156.67762333,0.00017109,2]
[399889742,1766817933211,-217.7996923,0.00017184,2]
[399889743,1766817933227,-203.5469681,0.00017803,2]
[399889744,1766817933245,-249.75936878,0.00018758,2]
[399889745,1766817933262,-380.8300885,0.00019241,2]
[399889746,1766817933281,-728.56357679,0.00019982,2]
[399889747,1766817933300,-2002.74839953,0.00020042,2]
[399889749,1766818028086,-165.0,0.000152,2]
[399889750,1766818028108,-223.25429028,0.00019333,2]
[399889751,1766818028130,-401.85772251,0.00019333,2]
[399889752,1766818028151,-133.67200998,0.00019333,2]
[399889753,1766818036161,-580.74171893,0.00019333,2]
[399889754,1766818036183,-123.40696287,0.00019866,2]
[399889778,1766818231599,-134.28573794,0.00019866,2]
[399889780,1766818231610,-170.64441579,0.00019954,2]
[399889781,1766818231620,-51.9760154,0.00019982,2]
[399889784,1766818231631,-585.5171143,0.00019982,2]
[399889785,1766818231641,-252.390593,0.00020042,2]
[399889787,1766818231651,-195.0,0.00020053,2]
[399889789,1766818231660,-649.04776407,0.00020054,2]
[399889791,1766818231670,-189.36140505,0.00020054,2]
[399889794,1766818231680,-500.0,0.00020054,2]
[399889797,1766818231689,-500.0,0.00020054,2]
[399889801,1766818231699,-500.0,0.00020054,2]
[399889803,1766818231709,-500.0,0.00020054,2]
[399889805,1766818231718,-500.0,0.00020054,2]
[399889806,1766818231728,-500.0,0.00020054,2]
[399889808,1766818231738,-500.0,0.00020054,2]
[399889830,1766818231949,-500.0,0.00020054,2]
[399889832,1766818231960,-500.0,0.00020054,2]
[399889834,1766818231969,-500.0,0.00020054,2]
[399889836,1766818231978,-500.0,0.00020054,2]
[399889838,1766818231988,-500.0,0.00020054,2]
[399889840,1766818231997,-185.25290456,0.00020054,2]
[399889842,1766818232007,-548.93098041,0.00020054,2]
[399889844,1766818232017,-500.0,0.00020054,2]
[399889846,1766818232027,-500.0,0.00020054,2]
[399889848,1766818232036,-2100.513216,0.00020055,2]
[399889850,1766818232048,-1193.70840169,0.00020055,2]
[399889852,1766818232060,-13998.35943124,0.00020055,2]
[399889854,1766818232071,-525.06757274,0.00020055,2]
[399889893,1766818237723,-677.42648617,0.00020055,2]
[399889900,1766818237786,-1468.40543659,0.00020055,2]
[399889902,1766818237799,-1340.016455,0.00020055,2]
[399890059,1766818244511,-2889.15968287,0.00020055,2]
[399890060,1766818244524,-21688.79131837,0.00020055,2]
[399890063,1766818245185,-17812.78728928,0.00020055,2]
[399890064,1766818245198,-311.0,0.00020055,2]
[399890073,1766818245752,-871.85190565,0.00020055,2]
[399890074,1766818245876,-765.71456297,0.00020055,2]
[399890075,1766818259574,150.0,0.00012925,2]
[399890076,1766818260478,150.0,0.000141,2]
[399890077,1766818266559,500.0,0.00013699,2]
[399890078,1766818266618,1000.0,0.00014247,2]
[399890079,1766818266667,654.8977644,0.00014795,2]
[399890080,1766818342533,236.23139835,7.961e-05,2]
[399890083,1766818383815,305.23317005,7.961e-05,2]
[399890084,1766818388513,150.0,0.00013035,2]
[399890085,1766818388917,150.0,0.0001422,2]
[399890086,1766818426028,500.0,0.00030134,120]
[399890087,1766818426303,510.00062273,0.00030134,120]
[399890088,1766818457240,150.0,9.216e-05,2]
[399890089,1766818457620,150.0,0.00010054,2]
[399890090,1766818458019,150.0,0.00010891,2]
[399890091,1766818458419,150.0,0.00011729,2]
[399890092,1766818458912,150.0,0.00012567,2]
[399890093,1766818868330,-1808.52530989,0.00016109,2]
[399890094,1766818868362,-181.14798755,0.00016191,2]
[399890095,1766818868393,-305.23317005,0.00016272,2]
[399890096,1766818868424,-213.75462531,0.00018191,2]
[399890097,1766818871062,-0.01,0.00018952,2]
[399890098,1766818874241,-0.02,0.00018952,2]
[399890099,1766818877240,-0.04,0.00018952,2]
[399890100,1766818877292,-9873.84544916,0.00018952,2]
[399890154,1766818931483,150.63923243,0.00030134,120]
[399890156,1766819045824,1150.0,0.0001439,2]
[399890157,1766819078776,3233.29109281,0.0001439,2]
[399890158,1766819100901,150.0,0.00012356,2]
[399890159,1766819101291,150.0,0.00013479,2]
[399890160,1766819134106,-342.16405794,0.0001828,2]
[399890161,1766819235096,-283.94921673,0.000144,25]
[399890162,1766819353090,-1274.49296417,0.000144,25]
[399890163,1766819353115,-383.66679083,0.00017366,2]
[399890164,1766819378321,500.63246542,0.00030134,120]
[399890165,1766819402909,155.71,0.000144,2]
[399890166,1766819403276,155.71,0.000147,2]
[399890167,1766819403716,155.71,0.00015,2]
[399890168,1766819404676,155.71,0.000154,2]
[399890169,1766819405147,155.71,0.000157,2]
[399890170,1766819405500,155.71,0.00016,2]
[399890171,1766819405879,155.71,0.000163,2]
[399890172,1766819406246,155.71,0.000166,2]
[399890173,1766819406612,155.71,0.00017,2]
[399890174,1766819407108,155.71,0.000173,2]
[399890175,1766819407386,155.71,0.000176,2]
[399890176,1766819407781,155.71,0.000179,2]
[399890177,1766819408185,155.71,0.000182,2]
[399890205,1766819431775,-155.71,0.000186,2]
[399890208,1766819431786,-183.31591022,0.00018616,2]
[399890210,1766819431796,-155.71,0.000189,2]
[399890212,1766819431807,-126.08455084,0.00018952,2]
[399890214,1766819431818,-155.71,0.000192,2]
[399890216,1766819431827,-48.46953894,0.00019441,2]
[399890218,1766819431839,-415.92752586,0.00019441,2]
[399890220,1766819431850,-155.71,0.000195,2]
[399890222,1766819431860,-11617.3533324,0.00019855,2]
[399890224,1766819431872,-1779.00510183,0.00019855,2]
[399890341,1766819437792,-529.46489486,0.00019855,2]
[399890342,1766819437804,-4295.9564416,0.00019855,2]
[399890343,1766819437857,-5848.75866296,0.00019855,2]
[399890344,1766819437869,-16695.4523268,0.00019855,2]
[399890345,1766819437881,-3527.23581549,0.00019855,2]
[399890346,1766819437893,-960.88302587,0.00019855,2]
[399890347,1766819437906,-1888.3931287,0.00019855,2]
[399890348,1766819437925,-2307.74992502,0.00019855,2]
[399890356,1766819440075,-8537.4376601,0.00019855,2]
[399890381,1766819445542,-500.0,0.00019855,2]
[399890390,1766819445925,-604.017359,0.00019855,2]
[399890391,1766819446044,-461.02753643,0.00019855,2]
[399890392,1766819446057,-699.44,0.00019855,2]
[399890397,1766819478691,155.72,0.000144,2]
[399890398,1766819479075,155.72,0.000157,2]
[399890399,1766819479482,155.72,0.00017,2]
[399890400,1766819479853,155.72,0.000183,2]
[399890401,1766819541731,1182.42770356,0.0001439,2]
[399890402,1766819548662,150.0,0.00012346,2]
[399890403,1766819549055,150.0,0.00013469,2]
[399890404,1766819603959,500.0,0.00013273,2]
[399890405,1766819604467,500.0,0.00013273,2]
[399890406,1766819615272,150.0,0.00012327,2]
[399890407,1766819615677,150.0,0.00013447,2]
[399890408,1766819680363,150.0,0.00012346,2]
[399890409,1766819777209,388.461874,0.00013699,2]
[399890427,1766819880655,187.80011347,7.961e-05,2]
[399890430,1766820347138,-626.0,0.000144,2]
[399890431,1766820347159,-306.69,0.000144,2]
[399890432,1766820347180,-164.73,0.000144,2]
[399890433,1766820347202,-155.73,0.000144,2]
[399890434,1766820347223,-186.8783105,0.000145,2]
[399890435,1766820347245,-187.80011347,0.00015511,2]
[399890436,1766820347268,-155.73,0.000164,2]
[399890437,1766820347290,-220.51640639,0.000165,2]
[399890438,1766820347313,-1041.18687215,0.000174,2]
[399890441,1766820453085,-155.71,0.000144,2]
[399890442,1766820453113,-178.73041617,0.000146,2]
[399890443,1766820453137,-210.90189108,0.000166,2]
[399890444,1766820453160,-155.71,0.00017,2]
[399890445,1766820453183,-372.61017145,0.000174,2]
[399890446,1766820453207,-272.98220135,0.00018099,2]
[399890447,1766820453228,-726.98331268,0.00018211,2]
[399890452,1766820562023,155.67,0.000144,2]
[399890453,1766820577334,150.0,0.00012321,2]
[399890454,1766820577735,150.0,0.00013442,2]
[399890459,1766820589937,160.0,0.0001439,2]
[399890469,1766820606713,152.1,0.000144,2]
[399890470,1766820607085,152.1,0.000148,2]
[399890471,1766820607534,152.1,0.000151,2]
[399890472,1766820607908,152.1,0.000155,2]
[399890473,1766820608294,152.1,0.000159,2]
[399890474,1766820609347,152.1,0.000163,2]
[399890475,1766820609717,152.1,0.000166,2]
[399890476,1766820610086,152.1,0.00017,2]
[399890477,1766820610446,152.1,0.000174,2]
[399890509,1766820631997,-152.1,0.000178,2]
[399890510,1766820632009,-1283.17231834,0.00018,2]
[399890528,1766820638144,-658.58429536,0.00018,2]
[399890529,1766820638158,-152.1,0.000181,2]
[399890530,1766820638168,-386.27620854,0.00018211,2]
[399890531,1766820638180,-672.59134168,0.00018211,2]
[399890532,1766820638190,-152.1,0.000185,2]
[399890533,1766820638201,-243.07336598,0.000186,2]
[399890534,1766820638211,-152.1,0.000189,2]
[399890535,1766820638221,-152.1,0.000193,2]
[399890536,1766820638232,-152.1,0.000196,2]
[399890537,1766820638243,-500.0,0.00019626,2]
[399890538,1766820638255,-278.94300174,0.00019626,2]
[399890539,1766820638267,-150.0,0.00019626,2]
[399890540,1766820638278,-150.0,0.00019626,2]
[399890541,1766820638289,-256.11779252,0.000197,2]
[399890542,1766820638300,-784.01868618,0.0001973,2]
[399890636,1766820793132,155.09,0.0001439,2]
[399890638,1766820970073,1000.0,0.00030137,120]
[399890639,1766821009949,5000.0,0.00030137,120]
[399890641,1766821218478,160.0,0.0001439,2]
[399890642,1766821298366,-1903.99905432,0.0003778,7]
[399890643,1766821298396,-229.31992141,0.0003778,15]
[399890644,1766821298424,-197.69167833,0.0003778,12]
[399890645,1766821298452,-1564.99426991,0.0003778,14]
[399890646,1766821298480,-826.35098226,0.0003778,15]
[399890647,1766821298508,-1545.80192827,0.0003778,15]
[399890648,1766821298538,-245.16141891,0.0003778,10]
[399890649,1766821298565,-5546.28878561,0.0003778,7]
[399890650,1766821298592,-457252.60494925,0.0003778,7]
[399890651,1766821298619,-10722.0,0.0003778,10]
[399890652,1766821298647,-5000.0,0.0003778,7]
[399890653,1766821298674,-3184.43657096,0.0003778,7]
[399890654,1766821298705,-34042.49797145,0.0003778,7]
[399890655,1766821298731,-26422.43111203,0.0003778,12]
[399890656,1766821298759,-2547.12499173,0.0003778,7]
[399890657,1766821298784,-72570.33343368,0.0003778,7]
[399890658,1766821298811,-398.39,0.0003778,15]
[399890659,1766821298836,-1112.15743615,0.0003778,10]
[399890660,1766821298862,-1181.21726231,0.0003778,15]
[399890661,1766821298887,-78526.68922602,0.0003778,7]
[399890662,1766821298914,-150.0,0.0003778,15]
[399890663,1766821298940,-507.29593457,0.0003778,10]
[399890664,1766821298963,-500.0,0.0003778,7]
[399890665,1766821298987,-2293823.21307283,0.0003778,20]
[399890666,1766821303517,-3000000.0,0.0003778,20]
[399890667,1766821317894,-3000000.0,0.0003778,20]
[399890668,1766821334606,-3000000.0,0.0003778,20]
[399890669,1766821384357,561.27026347,0.00030134,120]
[399890670,1766821389919,500.0,0.00030134,120]
[399890671,1766821390087,233.35681693,0.00030134,120]
[399890672,1766821414269,539.47047104,0.00030134,120]
[399890673,1766821423025,480.0,0.00030134,120]
[399890679,1766821431319,224.88911565,0.00025998,120]
[399890680,1766821448265,500.0,0.00030134,120]
[399890681,1766821448500,156.74766858,0.00030134,120]
[399890682,1766821462350,154.39021285,0.00030134,120]
[399890687,1766821495210,595.08225441,0.00030134,120]
[399890690,1766821543131,-151.24,0.000144,2]
[399890691,1766821543155,-173.49106277,0.000146,2]
[399890692,1766821543179,-151.24,0.000151,2]
[399890693,1766821543201,-188.36351381,0.00015339,2]
[399890694,1766821543223,-151.24,0.000158,2]
[399890695,1766821543246,-151.24,0.000164,2]
[399890696,1766821543269,-204.71945407,0.000166,2]
[399890697,1766821543292,-151.24,0.000171,2]
[399890698,1766821543314,-151.24,0.000178,2]
[399890699,1766821543335,-206.80246044,0.00018099,2]
[399890716,1766821623788,500.0,0.00030134,120]
[399890717,1766821624031,500.0,0.00030134,120]
[399890718,1766821624295,500.0,0.00030134,120]
[399890719,1766821624554,541.84200894,0.00030134,120]
[399890720,1766821639127,-151.24,0.000144,2]
[399890721,1766821639148,-165.0,0.000152,2]
[399890722,1766821639169,-151.24,0.000153,2]
[399890723,1766821639190,-151.24,0.000162,2]
[399890724,1766821639212,-85.4286818,0.000172,2]
[399890725,1766821647086,-65.8113182,0.000172,2]
[399890726,1766821647108,-6.22481039,0.00018099,2]
[399890727,1766821647130,-151.24,0.000181,2]
[399890728,1766821647152,-1200.0,0.00018529,2]
[399890729,1766821647173,-2146.32093307,0.0001853,2]
[399890730,1766821654742,199.21135219,0.00025998,120]
[399890731,1766821678753,151.26516266,0.00030137,120]
[399890732,1766821702831,513.92296982,0.00030134,120]
[399890733,1766821719878,10000.0,0.00030137,120]
[399890734,1766821736829,10000.0,0.00030137,120]
[399890735,1766821747093,-165.92685244,0.000151,2]
[399890736,1766821747117,-195.79368588,0.000171,2]
[399890737,1766821749274,151.24,0.000144,2]
[399890738,1766821749644,151.24,0.000157,2]
[399890739,1766821750031,151.24,0.00017,2]
[399890748,1766821752474,2240.0,0.00030137,120]
[399890773,1766821780372,531.78,0.00030137,120]
[399890778,1766821796297,833.85,0.00030134,120]
[399890779,1766821796522,833.85,0.00030134,120]
[399890780,1766821796755,833.85,0.00030134,120]
[399890781,1766821797008,833.85,0.00030134,120]
[399890782,1766821797273,833.85,0.00030134,120]
[399890783,1766821797508,833.85,0.00030134,120]
[399890784,1766821797760,833.85,0.00030134,120]
[399890785,1766821798083,833.85,0.00030134,120]
[399890786,1766821798321,833.85,0.00030134,120]
[399890787,1766821798594,833.85,0.00030134,120]
[399890788,1766821798825,833.85,0.00030134,120]
[399890789,1766821799074,833.85,0.00030134,120]
[399890790,1766821799296,833.85,0.00030134,120]
[399890791,1766821799536,833.85,0.00030134,120]
[399890792,1766821800129,833.85,0.00030134,120]
[399890793,1766821800421,833.85,0.00030134,120]
[399890794,1766821800664,833.85,0.00030134,120]
[399890795,1766821801085,833.85,0.00030134,120]
[399890796,1766821801150,833.85,0.00030134,120]
[399890797,1766821801379,833.85,0.00030134,120]
[399890798,1766821801612,833.85,0.00030134,120]
[399890799,1766821801876,833.85,0.00030134,120]
[399890800,1766821802114,833.85,0.00030134,120]
[399890801,1766821802457,833.9609775,0.00030134,120]
[399890802,1766821809138,151.49,0.000144,2]
[399890803,1766821809615,151.49,0.000155,2]
[399890804,1766821810002,151.49,0.000166,2]
[399890805,1766821810376,151.49,0.000178,2]
[399890806,1766821826454,5120.0,0.0001439,2]
[399890818,1766821832111,-721.22474694,0.0001853,2]
[399890819,1766821832140,-5141.88478849,0.0001853,2]
[399890820,1766821832152,-278.2287482,0.00018878,2]
[399890821,1766821832163,-151.49,0.000189,2]
[399890822,1766821832174,-255.16689888,0.00019051,2]
[399890823,1766821832185,-225.66051931,0.000191,2]
[399890824,1766821832197,-211.45,0.00019178,5]
[399890825,1766821832208,-1200.0,0.00019479,2]
[399890826,1766821832219,-161.0,0.0001948,2]
[399890827,1766821832231,-300.0,0.0001948,2]
[399890828,1766821832242,-338.77010893,0.00019504,2]
[399890829,1766821832254,-520.58365606,0.00019504,2]
[399890830,1766821832267,-3347.1373134,0.00019505,2]
[399890831,1766821832280,-150.0,0.00019626,2]
[399890832,1766821832292,-500.0,0.00019626,2]
[399890833,1766821832303,-174.78186473,0.00019626,2]
[399890834,1766821832315,-150.0,0.00019626,2]
[399890835,1766821832326,-454.33343485,0.00019654,2]
[399890836,1766821832338,-500.0,0.00019654,2]
[399890837,1766821832348,-193.02222284,0.00019654,2]
[399890838,1766821832360,-500.0,0.00019654,2]
[399890839,1766821832371,-500.0,0.00019654,2]
[399890840,1766821832383,-500.0,0.00019654,2]
[399890841,1766821832394,-500.0,0.00019654,2]
[399890842,1766821832417,-500.0,0.00019654,2]
[399890843,1766821832428,-500.0,0.00019654,2]
[399890844,1766821832439,-500.0,0.00019654,2]
[399890845,1766821832451,-500.0,0.00019654,2]
[399890846,1766821832462,-294.16033359,0.00019654,2]
[399890847,1766821832472,-500.0,0.00019654,2]
[399890848,1766821832484,-500.0,0.00019654,2]
[399890849,1766821832496,-500.0,0.00019654,2]
[399890850,1766821832507,-200.0,0.00019654,2]
[399890852,1766821832518,-62716.80856403,0.00019655,2]
[399890857,1766821835013,200.0,0.00027,120]
[399890858,1766821835328,200.0,0.000282,120]
[399890859,1766821835623,208.57316,0.000294,120]
[399890884,1766821838171,-2720.96378097,0.00019655,2]
[399890886,1766821838185,-970.12688167,0.00019655,2]
[399890895,1766821840359,-2665.76654565,0.00019655,2]
[399890897,1766821840375,-25819.49398638,0.00019655,2]
[399890900,1766821840391,-394.56133503,0.00019655,2]
[399891009,1766821844581,238.46383532,0.00015653,2]
[399891010,1766821845327,-25213.08116314,0.00019655,2]
[399891016,1766821846364,-1075.6164,0.00019655,2]
[399891017,1766821846407,-1075.6164,0.00019655,2]
[399891019,1766821851725,150.0,0.00010449,2]
[399891020,1766821852118,150.0,0.00011399,2]
[399891021,1766821852538,222.09,0.00012349,2]
[399891022,1766821852922,177.16755702,0.00013299,2]
[399891023,1766821852951,118.95244298,0.00013299,2]
[399891024,1766821853309,370.15,0.00014249,2]
[399891026,1766821892214,500.0,0.00030134,120]
[399891027,1766821892441,514.5946233,0.00030134,120]
[399891028,1766821930190,150.0,9.243e-05,2]
[399891029,1766821930679,150.0,0.00010083,2]
[399891030,1766821931146,176.72,0.00010923,2]
[399891031,1766821931566,235.62,0.00011763,2]
[399891032,1766821931952,294.53,0.00012604,2]
[399891033,1766821932335,353.43,0.00013444,2]
[399891034,1766821932714,412.34,0.00014284,2]
[399891035,1766821944055,159.14032781,0.00030134,120]
[399891036,1766821948834,156.22,0.0001,2]
[399891037,1766821952114,156.22,0.000102,2]
[399891038,1766821956573,153.32105927,0.00030137,120]
[399891039,1766821969494,-151.5,0.000144,2]
[399891040,1766821972122,150.63923243,0.00030134,120]
[399891041,1766821986339,481.31714329,0.00030134,120]
[399891042,1766821989096,-150.06,0.000144,2]
[399891043,1766821989119,-150.06,0.000151,2]
[399891044,1766821989143,-471.24,0.00015124,2]
[399891045,1766821989166,-150.06,0.000158,2]
[399891046,1766821989190,-78.58,0.00015965,2]
[399891047,1766822005274,150.0,0.00012331,2]
[399891048,1766822005669,150.0,0.00013453,2]
[399891049,1766822010274,-150.0,0.00014574,2]
[399891050,1766822010299,-150.0,0.00015695,2]
[399891051,1766822010320,-150.06,0.000164,2]
[399891052,1766822010343,-156.28,0.00016816,2]
[399891053,1766822024343,500.0,0.00030134,120]
[399891054,1766822024593,510.00062273,0.00030134,120]
[399891055,1766822034505,-150.06,0.000171,2]
[399891056,1766822034529,-168.72999247,0.0001745,2]
[399891057,1766822034550,-150.06,0.000178,2]
[399891058,1766822034574,-187.54,0.00017937,2]
[399891059,1766822034595,-217.799692,0.0001794,2]
[399891060,1766822052137,125.81031553,0.000144,2]
[399891061,1766822073708,-25.11968447,0.000144,2]
[399891062,1766822073732,-150.93,0.000155,2]
[399891063,1766822073759,-150.93,0.000166,2]
[399891064,1766822073783,-150.93,0.000178,2]
[399891065,1766822073806,-223.96595767,0.0001858,2]
[399891066,1766822073829,-150.93,0.000189,2]
[399891067,1766822077448,147.19435786,0.00012348,2]
[399891068,1766822077479,2.80564214,0.00012348,2]
[399891069,1766822077845,150.0,0.00013471,2]
[399891070,1766822085580,-150.0,0.00014593,2]
[399891071,1766822085603,-150.0,0.00015716,2]
[399891072,1766822085625,-150.0,0.00016838,2]
[399891073,1766822085647,-150.0,0.00017961,2]
[399891074,1766822100978,500.0,0.00030134,120]
[399891075,1766822101216,500.0,0.00030134,120]
[399891076,1766822101491,500.0,0.00030134,120]
[399891077,1766822101757,500.0,0.00030134,120]
[399891078,1766822101985,500.0,0.00030134,120]
[399891079,1766822102230,508.50058237,0.00030134,120]
[399891080,1766822106122,458580.61994531,0.0003,120]
[399891081,1766822106540,500.63246542,0.00030134,120]
[399891082,1766822146442,5120.0,0.0001439,2]
[399891083,1766822146617,150.0,0.00012337,2]
[399891084,1766822147010,150.0,0.00013459,2]
[399891085,1766822187441,161.0,0.000301,120]
[399891086,1766822191481,161.0,0.000301,120]
[399891088,1766822206887,-150.93,0.000144,2]
[399891089,1766822206917,-150.0,0.0001458,2]
[399891090,1766822206941,-150.0,0.00015702,2]
[399891091,1766822206964,-150.93,0.000161,2]
[399891092,1766822206987,-150.93,0.000179,2]
[399891093,1766822207008,-247.21,0.00018099,2]
[399891094,1766822210503,1567.23,0.00030137,120]
[399891095,1766822224058,5120.0,0.0001439,2]
[399891096,1766822375330,5120.0,0.0001439,2]
[399891097,1766822383883,221.56239523,7.961e-05,2]
[399891099,1766822470202,1000.0,0.00030136,120]
[399891100,1766822550999,150.0,8.3e-07,2]
[399891101,1766822552030,150.0,8.3e-07,2]
[399891102,1766822553063,150.0,8.3e-07,2]
[399891103,1766822580621,221.67312107,7.961e-05,2]
[399891104,1766822724201,150.0,0.00012297,2]
[399891105,1766822724617,150.0,0.00013415,2]
[399891106,1766822729011,369.03878,0.00013699,2]
[399891107,1766822756241,-305.45327641,0.000144,2]
[399891108,1766822791721,150.0,0.00012297,2]
[399891109,1766822792117,150.0,0.00013415,2]
[399891110,1766822849088,-194.54672359,0.000144,2]
[399891111,1766822849109,-417.96727763,0.000144,2]
[399891112,1766822857147,150.0,0.00012297,2]
[399891113,1766822857634,150.0,0.00013415,2]
[399891114,1766822860203,500.0,0.00030134,120]
[399891115,1766822860458,503.7798637,0.00030134,120]
[399891116,1766822883074,223.68,7.933e-05,2]
[399891117,1766822883335,223.68,7.933e-05,2]
[399891118,1766822883616,223.67,7.933e-05,2]
[399891119,1766822902881,10240.0,0.0001439,2]
[399891120,1766822922731,150.0,9.108e-05,2]
[399891121,1766822923123,150.0,9.936e-05,2]
[399891122,1766822949131,-82.03272237,0.000144,2]
[399891123,1766822949155,-168.35539262,0.0001455,2]
[399891124,1766822949175,-272.53278476,0.00015384,2]
[399891125,1766822954103,-150.33,0.000144,2]
[399891126,1766822954127,-150.33,0.00015,2]
[399891127,1766822954148,-2227.46721524,0.00015384,2]
[399891128,1766822954170,-150.33,0.000156,2]
[399891129,1766822954193,-150.33,0.000163,2]